bitfinex/quotes_BTCUSD_20250421
["timestamp","ask_amount","ask_price","bid_price","bid_amount"]
[1745276024701,0.01335044,87058.0,87057.0,0.00045753]
[1745276025055,0.24308234,87058.0,87057.0,0.00045753]
[1745276025623,0.01335044,87058.0,87057.0,0.00045753]
[1745276028509,0.01335044,87058.0,87057.0,0.16111347]
[1745276028707,0.002,87058.0,87057.0,0.21011347]
[1745276028899,0.002,87058.0,87057.0,0.22465432]
[1745276040575,0.001,87058.0,87057.0,0.22465432]
[1745276040917,0.001,87058.0,87057.0,0.22695143]
[1745276041135,0.01148514,87069.0,87065.0,0.01148567]
[1745276041352,0.11647482,87067.0,87065.0,0.01148567]
[1745276042185,0.11647482,87067.0,87066.0,0.048]
[1745276043026,0.11747482,87067.0,87066.0,0.048]
[1745276043231,0.11747482,87067.0,87066.0,0.05969526]
[1745276043795,0.11847482,87067.0,87066.0,0.05969526]
[1745276044200,0.11747482,87067.0,87066.0,0.05969526]
[1745276044746,0.11847482,87067.0,87066.0,0.05969526]
[1745276056540,0.12996022,87067.0,87062.0,0.24120574]
[1745276056758,0.01148553,87066.0,87063.0,0.11375594]
[1745276056965,0.24121124,87061.0,87058.0,0.20559098]
[1745276057110,0.01148619,87061.0,87058.0,0.12537793]
[1745276057320,0.24120503,87063.0,87058.0,0.36659423]
[1745276057550,0.01148593,87063.0,87059.0,0.01148646]
[1745276057950,0.01148593,87063.0,87059.0,0.24121402]
[1745276058122,0.0114858,87064.0,87061.0,0.01148619]
[1745276059506,0.0124858,87064.0,87061.0,0.01148619]
[1745276060633,0.01136363,87063.0,87061.0,0.01148619]
[1745276060841,0.01136363,87063.0,87061.0,0.24120847]
[1745276062024,0.01236363,87063.0,87061.0,0.24120847]
[1745276062246,0.01236363,87063.0,87062.0,0.16095594]
[1745276064223,0.01136363,87063.0,87062.0,0.16095594]
[1745276064431,0.01236363,87063.0,87062.0,0.16095594]
[1745276064658,0.01236363,87063.0,87062.0,0.11375594]
[1745276065029,0.01236363,87063.0,87058.0,0.06810858]
[1745276065030,0.02384956,87063.0,87058.0,0.05648659]
[1745276065377,0.01148619,87061.0,87057.0,0.24167681]
[1745276065592,0.01135572,87060.0,87058.0,0.24121605]
[1745276065797,0.001,87063.0,87060.0,0.24121295]
[1745276066006,0.011361,87062.0,87060.0,0.24121295]
[1745276066432,0.10510951,87061.0,87060.0,0.24121295]
[1745276069132,0.10510951,87061.0,87060.0,0.28621295]
[1745276069358,0.11646787,87061.0,87060.0,0.39996889]
[1745276069573,0.01,87064.0,87063.0,0.2297187]
[1745276070824,0.011,87064.0,87063.0,0.2297187]
[1745276071056,0.012,87064.0,87063.0,0.2297187]
[1745276071226,0.012,87064.0,87062.0,0.22972134]
[1745276071443,0.012,87064.0,87062.0,0.34347728]
[1745276072020,0.011,87064.0,87062.0,0.34347728]
[1745276072758,0.01136363,87063.0,87062.0,0.34347728]
[1745276074138,0.01236363,87063.0,87062.0,0.34347728]
[1745276081347,0.11747868,87063.0,87060.0,0.24121295]
[1745276082580,0.11747868,87063.0,87057.0,0.00045753]
[1745276082581,0.01148633,87060.0,87057.0,0.00045753]
[1745276082809,0.2297308,87059.0,87057.0,0.00045753]
[1745276083027,0.0462,87058.0,87057.0,0.00045753]
[1745276083177,0.24192152,87058.0,87057.0,0.00045753]
[1745276083386,0.26343197,87058.0,87057.0,0.00045753]
[1745276083553,0.32951843,87058.0,87057.0,0.00045753]
[1745276083748,0.33758521,87058.0,87057.0,0.00045753]
[1745276084355,0.34058521,87058.0,87057.0,0.00045753]
[1745276084565,0.24423317,87058.0,87057.0,0.00045753]
[1745276086532,0.25558361,87058.0,87057.0,0.00045753]
[1745276086695,0.67148361,87058.0,87057.0,0.00045753]
[1745276088212,0.04592767,87058.0,87057.0,0.23019207]
[1745276088417,0.02441722,87058.0,87057.0,0.23019207]
[1745276088785,0.005,87058.0,87057.0,0.23019207]
[1745276088987,0.003,87058.0,87057.0,0.23019207]
[1745276089195,0.001,87063.0,87062.0,0.22972134]
[1745276090209,0.22972926,87059.0,87057.0,0.00045753]
[1745276090414,0.1163717,87058.0,87057.0,0.00045753]
[1745276092198,0.3461036,87058.0,87057.0,0.00045753]
[1745276096260,0.1163717,87058.0,87057.0,0.00045753]
[1745276096865,0.001,87063.0,87060.0,0.01148633]
[1745276097312,0.1163717,87062.0,87060.0,0.01148633]
[1745276097983,0.1163717,87062.0,87058.0,0.2297319]
[1745276097984,0.2297319,87058.0,87057.0,0.00045753]
[1745276098193,0.01148633,87060.0,87057.0,0.00045753]
[1745276098568,0.24121519,87060.0,87057.0,0.00045753]
[1745276098935,0.2297319,87058.0,87057.0,0.00045753]
[1745276100507,0.24208234,87058.0,87057.0,0.00045753]
[1745276104267,0.65798234,87058.0,87057.0,0.00045753]
[1745276104504,0.42825044,87058.0,87057.0,0.00045753]
[1745276104744,0.01235044,87058.0,87057.0,0.04745753]
[1745276105078,0.001,87058.0,87057.0,0.04745753]
[1745276105723,0.22972398,87061.0,87057.0,0.00045753]
[1745276105930,0.12790234,87060.0,87057.0,0.00045753]
[1745276106127,0.001,87058.0,87057.0,0.00045753]
[1745276106625,0.22973045,87059.0,87057.0,0.00045753]
[1745276108604,0.01135044,87058.0,87057.0,0.00045753]
[1745276109072,0.01235044,87058.0,87057.0,0.00045753]
[1745276111472,0.11741601,87058.0,87057.0,0.00045753]
[1745276112201,0.12741601,87058.0,87057.0,0.00045753]
[1745276153522,0.12741601,87058.0,87057.0,0.23019207]
[1745276153731,0.12741601,87058.0,87057.0,0.00045753]
[1745276154110,0.12741601,87058.0,87057.0,0.23019207]
[1745276154310,0.12741601,87058.0,87057.0,0.00045753]
[1745276155832,0.12741601,87058.0,87057.0,0.04815753]
[1745276168733,0.12741601,87058.0,87057.0,0.00045753]
[1745276169060,0.011,87058.0,87057.0,0.00045753]
[1745276171916,0.011,87058.0,87057.0,0.09355753]
[1745276172722,0.12740651,87058.0,87057.0,0.09355753]
[1745276172922,0.02235044,87058.0,87057.0,0.09355753]
[1745276173385,0.02235044,87058.0,87057.0,0.20731347]
[1745276173558,0.02235044,87058.0,87057.0,0.22185432]
[1745276173765,0.011,87058.0,87057.0,0.22185432]
[1745276230144,0.011,87058.0,87057.0,0.56415141]
[1745276230345,0.011,87058.0,87057.0,0.56185432]
[1745276231652,0.01,87058.0,87057.0,0.56185432]
[1745276242098,0.01,87058.0,87057.0,0.56285432]
[1745276242523,0.01,87058.0,87057.0,0.56385432]
[1745276250828,0.01,87058.0,87057.0,0.56285432]
[1745276253964,0.01,87058.0,87057.0,0.65857432]
[1745276258421,0.000844,87074.0,87073.0,0.56969232]
[1745276258622,0.000844,87074.0,87073.0,0.74348911]
[1745276260626,0.000844,87074.0,87073.0,0.70652062]
[1745276260937,0.000844,87074.0,87073.0,0.80224062]
[1745276263251,0.000844,87074.0,87073.0,0.79370911]
[1745276264327,0.000844,87074.0,87073.0,0.77916826]
[1745276265915,0.000844,87074.0,87073.0,0.68344826]
[1745276266189,0.000844,87074.0,87073.0,0.69798911]
[1745276266491,0.000844,87074.0,87073.0,0.72630778]
[1745276267242,0.000844,87074.0,87073.0,0.69798911]
[1745276268572,0.000844,87074.0,87073.0,0.77912826]
[1745276269806,0.000844,87074.0,87073.0,0.68344826]
[1745276270002,0.000844,87074.0,87073.0,0.77912826]
[1745276270210,0.000844,87074.0,87073.0,0.68344826]
[1745276270457,0.000844,87074.0,87073.0,0.83916911]
[1745276273301,0.010844,87074.0,87073.0,0.83916911]
[1745276275394,1e-08,87076.0,87075.0,0.5842279]
[1745276275603,1e-08,87076.0,87075.0,0.79498384]
[1745276276216,0.004,87099.0,87094.0,0.56963694]
[1745276276423,0.004,87099.0,87094.0,0.89061373]
[1745276277584,0.0009812,87095.0,87094.0,0.89061373]
[1745276277702,0.0029812,87095.0,87094.0,0.89061373]
[1745276278054,0.0029812,87095.0,87094.0,0.89902273]
[1745276278255,0.0029812,87095.0,87094.0,0.91021346]
[1745276278899,0.0019812,87095.0,87094.0,0.91021346]
[1745276279150,0.0009812,87095.0,87094.0,0.91021346]
[1745276279365,0.0019812,87095.0,87094.0,0.91021346]
[1745276279571,0.0029812,87095.0,87094.0,0.91021346]
[1745276279793,0.0009812,87095.0,87094.0,0.91021346]
[1745276280011,0.0019812,87095.0,87094.0,0.91021346]
[1745276280643,0.0009812,87095.0,87094.0,0.91021346]
[1745276280852,0.0019812,87095.0,87094.0,0.91021346]
[1745276283390,0.0119812,87095.0,87094.0,0.91021346]
[1745276283988,0.0119812,87095.0,87094.0,0.90180446]
[1745276326480,0.0119812,87095.0,87094.0,0.80612446]
[1745276326718,0.0119812,87095.0,87094.0,0.90176446]
[1745276344731,0.004,87099.0,87098.0,0.58416724]
[1745276344933,0.004,87099.0,87098.0,0.74562318]
[1745276345139,0.004,87099.0,87098.0,0.80308401]
[1745276346484,0.004,87099.0,87098.0,0.74562318]
[1745276354865,0.004,87099.0,87098.0,0.79356318]
[1745276359582,0.004,87099.0,87098.0,0.69792318]
[1745276359818,0.004,87099.0,87098.0,0.79352318]
[1745276361624,0.004,87099.0,87098.0,0.69792318]
[1745276361837,0.004,87099.0,87098.0,0.79352318]
[1745276362426,0.004,87099.0,87098.0,0.69792318]
[1745276362651,0.004,87099.0,87098.0,0.79352318]
[1745276362855,0.004,87099.0,87098.0,0.69792318]
[1745276363097,0.004,87099.0,87098.0,0.79352318]
[1745276363659,0.004,87099.0,87098.0,0.69792318]
[1745276363858,0.005,87099.0,87098.0,0.68338233]
[1745276370914,0.004,87099.0,87098.0,0.68338233]
[1745276380375,0.004,87099.0,87098.0,0.69792318]
[1745276402349,0.004,87099.0,87094.0,0.02267257]
[1745276402564,0.004,87099.0,87096.0,0.35148158]
[1745276402811,0.004,87099.0,87096.0,0.45375594]
[1745276403006,0.01548118,87099.0,87096.0,0.45375594]
[1745276403228,0.2296343,87095.0,87094.0,0.01119073]
[1745276403460,0.01148316,87084.0,87076.0,0.01148422]
[1745276403674,0.01148224,87091.0,87084.0,0.01148316]
[1745276403880,0.0114829,87086.0,87083.0,0.01148329]
[1745276404066,0.0114829,87086.0,87081.0,0.24115285]
[1745276404067,0.01148303,87085.0,87081.0,0.24115285]
[1745276404265,0.01148316,87084.0,87081.0,0.11375594]
[1745276404646,0.01148303,87085.0,87081.0,0.1252395]
[1745276405519,0.24114647,87084.0,87081.0,0.11375594]
[1745276405632,0.22966784,87083.0,87081.0,0.11375594]
[1745276409248,0.23066784,87083.0,87081.0,0.11375594]
[1745276409452,0.23166784,87083.0,87081.0,0.11375594]
[1745276412380,0.22967122,87081.0,87080.0,0.0001372]
[1745276412586,0.27517122,87081.0,87080.0,0.0001372]
[1745276415853,0.27617122,87081.0,87080.0,0.0001372]
[1745276416270,0.27717122,87081.0,87080.0,0.0001372]
[1745276417874,0.39491282,87081.0,87080.0,0.0001372]
[1745276418006,0.81081282,87081.0,87080.0,0.0001372]
[1745276423259,0.76531282,87081.0,87080.0,0.0001372]
[1745276430350,0.5356416,87081.0,87080.0,0.0001372]
[1745276430555,0.5356416,87081.0,87080.0,0.16329314]
[1745276430796,0.4179,87081.0,87080.0,0.16329314]
[1745276431365,0.53557904,87081.0,87080.0,0.16329314]
[1745276434831,0.53557904,87081.0,87080.0,0.51783399]
[1745276435618,0.11967904,87081.0,87080.0,0.51783399]
[1745276436064,0.002,87081.0,87080.0,0.51783399]
[1745276436899,0.001,87081.0,87080.0,0.51783399]
[1745276437384,0.01148211,87092.0,87089.0,0.0114825]
[1745276437610,0.01148211,87092.0,87089.0,0.12523844]
[1745276437808,0.11767903,87091.0,87089.0,0.35488664]
[1745276439446,0.11867903,87091.0,87089.0,0.35488664]
[1745276440327,0.11967903,87091.0,87090.0,0.0492]
[1745276441276,0.11867903,87091.0,87090.0,0.17749679]
[1745276441466,0.11967903,87091.0,87090.0,0.17749679]
[1745276441602,0.001,87091.0,87090.0,0.17749679]
[1745276441812,0.002,87091.0,87090.0,0.17749679]
[1745276442021,0.001,87091.0,87090.0,0.17749679]
[1745276442219,0.002,87091.0,87090.0,0.17749679]
[1745276442566,0.002,87091.0,87090.0,0.51749679]
[1745276443047,0.001,87091.0,87090.0,0.51749679]
[1745276443450,0.002,87091.0,87090.0,0.51749679]
[1745276451252,0.001,87091.0,87090.0,0.51749679]
[1745276452667,0.004,87099.0,87097.0,0.01454085]
[1745276452947,0.004,87099.0,87098.0,0.34338233]
[1745276453921,0.005,87099.0,87098.0,0.34338233]
[1745276454648,0.006,87099.0,87098.0,0.34338233]
[1745276455563,0.005,87099.0,87098.0,0.34338233]
[1745276455878,0.006,87099.0,87098.0,0.34338233]
[1745276456257,0.006,87099.0,87098.0,0.3545892]
[1745276461413,0.12389251,87099.0,87098.0,0.3545892]
[1745276461637,0.006,87099.0,87098.0,0.3545892]
[1745276462548,0.12389251,87099.0,87098.0,0.3545892]
[1745276462761,0.006,87099.0,87098.0,0.3545892]
[1745276462925,0.12389251,87099.0,87098.0,0.3545892]
[1745276463129,0.006,87099.0,87098.0,0.34338233]
[1745276463417,0.006,87099.0,87098.0,0.11375594]
[1745276463617,0.12389251,87099.0,87095.0,0.35148171]
[1745276463847,0.12389251,87099.0,87097.0,0.34]
[1745276464137,0.12389251,87099.0,87097.0,0.45375594]
[1745276464601,0.12289251,87099.0,87097.0,0.45375594]
[1745276464835,0.12389251,87099.0,87097.0,0.45375594]
[1745276465351,0.35251639,87099.0,87097.0,0.45375594]
[1745276465564,0.35351639,87099.0,87097.0,0.45375594]
[1745276466059,0.12389251,87099.0,87097.0,0.45375594]
[1745276466224,0.12289251,87099.0,87097.0,0.45375594]
[1745276466569,0.12389251,87099.0,87097.0,0.45375594]
[1745276470789,0.12389251,87099.0,87097.0,0.68338309]
[1745276471324,0.12389251,87099.0,87097.0,0.45375594]
[1745276472121,0.01148237,87090.0,87087.0,0.35125199]
[1745276472344,0.22964221,87092.0,87088.0,0.01148263]
[1745276472590,0.24112986,87090.0,87086.0,0.24113907]
[1745276472767,0.01148237,87090.0,87086.0,0.12523884]
[1745276472962,0.01148237,87090.0,87087.0,0.34]
[1745276473287,0.22965012,87089.0,87087.0,0.34]
[1745276473488,0.22965458,87088.0,87086.0,0.11375594]
[1745276475773,0.01148303,87085.0,87081.0,0.36602441]
[1745276475971,0.01148303,87085.0,87082.0,0.12523936]
[1745276475972,0.01141903,87084.0,87082.0,0.12523936]
[1745276476524,0.01148303,87085.0,87082.0,0.12523936]
[1745276476733,0.01148277,87087.0,87084.0,0.01148316]
[1745276476932,0.01148277,87087.0,87085.0,0.11375594]
[1745276477143,0.22965458,87088.0,87085.0,0.11375594]
[1745276477144,0.10649904,87086.0,87085.0,0.11375594]
[1745276477318,0.24113721,87088.0,87085.0,0.12523897]
[1745276477524,0.01148197,87093.0,87087.0,0.01148277]
[1745276477869,0.01148171,87095.0,87092.0,0.01148211]
[1745276478756,0.01148171,87095.0,87091.0,0.01148224]
[1745276478981,0.01148197,87093.0,87088.0,0.17433857]
[1745276479215,0.24112383,87093.0,87088.0,0.17433857]
[1745276479596,0.01148224,87091.0,87088.0,0.16285594]
[1745276479796,0.24112948,87091.0,87088.0,0.16285594]
[1745276480008,0.24112948,87091.0,87088.0,0.11375594]
[1745276480341,0.01148316,87084.0,87081.0,0.24115478]
[1745276480562,0.01148263,87088.0,87082.0,0.35148342]
[1745276480713,0.01148277,87087.0,87083.0,0.01148329]
[1745276481482,0.0114825,87089.0,87086.0,0.0114829]
[1745276481692,0.42738224,87091.0,87087.0,0.24113817]
[1745276481892,0.42838224,87091.0,87087.0,0.24113817]
[1745276482113,0.42838224,87091.0,87087.0,0.01148277]
[1745276482315,0.42738224,87091.0,87087.0,0.01148277]
[1745276482538,0.24112986,87090.0,87087.0,0.01148277]
[1745276482874,0.4159,87091.0,87089.0,0.22965012]
[1745276483278,0.01143485,87090.0,87089.0,0.22965012]
[1745276483450,0.01143485,87090.0,87089.0,0.27875012]
[1745276484277,0.01143485,87090.0,87089.0,0.39250606]
[1745276485022,0.01243485,87090.0,87089.0,0.39250606]
[1745276485828,0.001,87090.0,87089.0,0.39250606]
[1745276486245,0.002,87090.0,87089.0,0.39250606]
[1745276486651,0.10841427,87090.0,87089.0,0.40704691]
[1745276486853,0.01343485,87090.0,87089.0,0.40704691]
[1745276487769,0.002,87090.0,87089.0,0.40704691]
[1745276487971,0.002,87090.0,87089.0,0.17739679]
[1745276488166,0.10841427,87090.0,87089.0,0.17739679]
[1745276488528,0.11984912,87090.0,87089.0,0.17739679]
[1745276489006,0.11984912,87090.0,87087.0,0.01148277]
[1745276489208,0.11984912,87090.0,87088.0,0.11375594]
[1745276489417,0.34949889,87090.0,87088.0,0.11375594]
[1745276489914,0.34849889,87090.0,87088.0,0.11375594]
[1745276490832,0.34749889,87090.0,87088.0,0.11375594]
[1745276491253,0.24114219,87086.0,87082.0,0.34]
[1745276491455,0.22966564,87084.0,87083.0,0.11375594]
[1745276491815,0.24108467,87084.0,87083.0,0.11375594]
[1745276493974,0.22967122,87081.0,87080.0,0.0001372]
[1745276494173,0.24114924,87083.0,87080.0,0.0001372]
[1745276494359,0.01141112,87081.0,87080.0,0.0001372]
[1745276494567,0.10646444,87082.0,87080.0,0.0001372]
[1745276495261,0.01141112,87081.0,87080.0,0.0001372]
[1745276495604,0.1178782,87081.0,87080.0,0.0001372]
[1745276495980,0.01141112,87081.0,87080.0,0.0001372]
[1745276496198,0.10646708,87081.0,87080.0,0.0001372]
[1745276496378,0.001,87081.0,87080.0,0.0001372]
[1745276497991,0.002,87081.0,87080.0,0.0001372]
[1745276503932,0.002,87081.0,87080.0,0.16029314]
[1745276507567,0.002,87081.0,87080.0,0.11389314]
[1745276509734,0.10841745,87081.0,87080.0,0.11389314]
[1745276512401,0.10841745,87081.0,87080.0,0.0001372]
[1745276517916,0.52431745,87081.0,87080.0,0.0001372]
[1745276520302,0.5458024,87081.0,87080.0,0.0001372]
[1745276523607,0.55654466,87081.0,87080.0,0.0001372]
[1745276524377,0.55754466,87081.0,87080.0,0.0001372]
[1745276524615,0.60514466,87081.0,87080.0,0.0001372]
[1745276524753,0.7189006,87081.0,87080.0,0.0001372]
[1745276524958,0.7678006,87081.0,87080.0,0.0001372]
[1745276525393,0.22975037,87051.0,87050.0,0.0473]
[1745276525739,0.22975037,87051.0,87050.0,0.50105594]
[1745276525870,0.33620929,87051.0,87050.0,0.50105594]
[1745276526265,0.33620929,87051.0,87047.0,0.0488]
[1745276526266,0.22975829,87048.0,87047.0,0.0488]
[1745276526517,0.22975829,87048.0,87040.0,0.0473]
[1745276526518,0.01148883,87041.0,87040.0,0.0473]
[1745276526916,0.11497414,87041.0,87040.0,0.0473]
[1745276527112,0.11297414,87041.0,87040.0,0.0473]
[1745276527522,0.00648883,87041.0,87040.0,0.0473]
[1745276527715,0.00648883,87041.0,87040.0,0.0483]
[1745276527951,0.24126006,87043.0,87040.0,0.0483]
[1745276528242,0.1174254,87042.0,87040.0,0.0483]
[1745276529875,0.1174254,87042.0,87040.0,0.27707925]
[1745276530277,0.1174254,87042.0,87040.0,0.0473]
[1745276531046,0.1174254,87042.0,87041.0,0.22977677]
[1745276531181,0.1174254,87042.0,87040.0,0.27707745]
[1745276535385,0.1174254,87042.0,87040.0,0.0473]
[1745276536143,0.1174254,87042.0,87040.0,0.2770776]
[1745276538256,0.1174254,87042.0,87041.0,0.51569679]
[1745276538377,0.1174254,87042.0,87041.0,0.56539679]
[1745276538591,0.42738619,87061.0,87058.0,0.0474]
[1745276538798,0.11742541,87060.0,87058.0,0.288618]
[1745276540001,0.1071254,87067.0,87063.0,0.01148593]
[1745276540201,0.1174254,87066.0,87064.0,0.0114858]
[1745276540408,0.1174254,87066.0,87065.0,0.22971126]
[1745276541275,0.1174254,87066.0,87064.0,0.0114858]
[1745276541526,0.1194254,87066.0,87064.0,0.0114858]
[1745276543135,0.1204254,87066.0,87064.0,0.0114858]
[1745276543622,0.1224254,87066.0,87065.0,0.73216937]
[1745276543824,0.1224254,87066.0,87065.0,0.74671022]
[1745276544036,0.005,87066.0,87065.0,0.79551022]
[1745276544510,0.4159,87074.0,87073.0,0.27839232]
[1745276544721,0.4169,87081.0,87080.0,0.22967386]
[1745276544934,0.41703707,87081.0,87080.0,0.22967386]
[1745276545648,0.41703707,87081.0,87079.0,0.2296765]
[1745276546196,0.41903707,87081.0,87079.0,0.2296765]
[1745276547352,0.42103707,87081.0,87079.0,0.2296765]
[1745276547483,0.41903707,87081.0,87079.0,0.2296765]
[1745276547705,0.01140848,87080.0,87079.0,0.2296765]
[1745276548853,0.01340848,87080.0,87079.0,0.34343244]
[1745276549392,0.002,87080.0,87079.0,0.34343244]
[1745276549591,0.004,87080.0,87079.0,0.34343244]
[1745276550361,0.002,87080.0,87079.0,0.34343244]
[1745276550565,0.001,87080.0,87079.0,0.34343244]
[1745276550740,0.002,87080.0,87079.0,0.34343244]
[1745276552128,0.002,87080.0,87075.0,0.01148435]
[1745276552397,0.01140584,87079.0,87077.0,0.01148408]
[1745276552599,0.11757014,87079.0,87077.0,0.01148408]
[1745276553724,0.11857014,87079.0,87077.0,0.01148408]
[1745276554483,0.11957014,87079.0,87077.0,0.01148408]
[1745276555048,0.11957014,87079.0,87073.0,0.0487]
[1745276555049,0.13105396,87079.0,87073.0,0.0487]
[1745276555259,0.01148422,87076.0,87073.0,0.01148461]
[1745276555457,0.13105396,87079.0,87075.0,0.01148435]
[1745276555776,0.02488966,87079.0,87076.0,0.01148422]
[1745276555970,0.02388966,87079.0,87076.0,0.01148422]
[1745276556177,0.02488966,87079.0,87076.0,0.01148422]
[1745276556514,0.02288966,87079.0,87076.0,0.01148422]
[1745276556758,0.02388966,87079.0,87076.0,0.01148422]
[1745276556959,0.02488966,87079.0,87076.0,0.01148422]
[1745276557680,0.02588966,87079.0,87076.0,0.01148422]
[1745276558847,0.01148395,87078.0,87075.0,0.01148435]
[1745276559051,0.24116496,87078.0,87073.0,0.24117519]
[1745276559270,0.02288465,87077.0,87073.0,0.24117519]
[1745276559936,0.25256822,87077.0,87073.0,0.01148461]
[1745276560299,0.01240057,87077.0,87073.0,0.01148461]
[1745276560510,0.01240057,87077.0,87075.0,0.229685]
[1745276561522,0.01340057,87077.0,87075.0,0.229685]
[1745276561913,0.01240057,87077.0,87075.0,0.229685]
[1745276562127,0.01340057,87077.0,87075.0,0.229685]
[1745276562936,0.01148474,87072.0,87069.0,0.01148514]
[1745276563348,0.01138474,87071.0,87069.0,0.01148514]
[1745276563765,0.01138474,87071.0,87069.0,0.24118638]
[1745276564061,0.24116932,87076.0,87072.0,0.01148474]
[1745276564476,0.11757014,87075.0,87072.0,0.01148474]
[1745276565607,0.01148501,87070.0,87067.0,0.0487]
[1745276566049,0.11757014,87069.0,87068.0,0.56970551]
[1745276567386,0.11857014,87069.0,87068.0,0.56970551]
[1745276567582,0.11957014,87069.0,87068.0,0.34]
[1745276568030,0.11957014,87069.0,87068.0,0.56970551]
[1745276568450,0.002,87069.0,87068.0,0.56970551]
[1745276573033,0.11951232,87069.0,87068.0,0.56970551]
[1745276573988,0.002,87069.0,87068.0,0.56970551]
[1745276581605,0.01148553,87066.0,87062.0,0.22972081]
[1745276581879,0.24120083,87065.0,87061.0,0.01148619]
[1745276582101,0.01148553,87066.0,87061.0,0.24120928]
[1745276583346,0.01148553,87066.0,87062.0,0.22971871]
[1745276583779,0.01148553,87066.0,87063.0,0.01148593]
[1745276584639,0.1061493,87065.0,87063.0,0.01148593]
[1745276585261,0.01136627,87064.0,87063.0,0.01148593]
[1745276590931,0.0114854,87067.0,87064.0,0.24120187]
[1745276591320,0.11751821,87066.0,87064.0,0.24120187]
[1745276592191,0.11751821,87066.0,87065.0,0.0483]
[1745276592364,0.11751821,87066.0,87065.0,0.21015594]
[1745276592585,0.11751821,87066.0,87065.0,0.56469679]
[1745276593474,0.11851821,87066.0,87065.0,0.56469679]
[1745276597356,0.001,87066.0,87065.0,0.56469679]
[1745276610662,0.001,87066.0,87065.0,0.51659679]
[1745276614387,0.001,87066.0,87065.0,0.62025762]
[1745276615415,0.001,87066.0,87065.0,0.56279679]
[1745276646128,0.001,87066.0,87065.0,0.11375594]
[1745276646471,0.11856909,87066.0,87065.0,0.11375594]
[1745276652414,0.01148751,87051.0,87050.0,0.20548975]
[1745276652633,0.24122653,87056.0,87051.0,0.01135653]
[1745276652873,0.24122653,87056.0,87053.0,0.34]
[1745276653084,0.11754439,87055.0,87054.0,0.11375594]
[1745276653301,0.11754439,87055.0,87054.0,0.45375594]
[1745276653842,0.01148633,87060.0,87056.0,0.01148685]
[1745276654046,0.01148633,87060.0,87056.0,0.12524279]
[1745276654047,0.35876012,87059.0,87056.0,0.12524279]
[1745276654819,0.22973454,87057.0,87053.0,0.01148725]
[1745276655066,0.24122126,87057.0,87053.0,0.35148725]
[1745276656407,0.01134516,87056.0,87053.0,0.35148725]
[1745276657897,0.01148778,87049.0,87044.0,0.01148844]
[1745276658107,0.01148804,87047.0,87043.0,0.22976917]
[1745276658319,0.01132405,87048.0,87045.0,0.58125452]
[1745276658520,0.01131877,87046.0,87045.0,0.69501046]
[1745276658723,0.01148751,87051.0,87048.0,0.01148791]
[1745276658926,0.22976357,87046.0,87044.0,0.00045753]
[1745276659368,0.15122827,87045.0,87044.0,0.00045753]
[1745276659593,0.20032827,87045.0,87044.0,0.00045753]
[1745276660013,0.68090736,87045.0,87044.0,0.00045753]
[1745276660243,0.6275444,87045.0,87044.0,0.00045753]
[1745276660461,0.6295444,87045.0,87044.0,0.00045753]
[1745276660863,0.74330034,87045.0,87044.0,0.00045753]
[1745276661064,0.74530034,87045.0,87044.0,0.00045753]
[1745276661288,0.85905239,87045.0,87044.0,0.00045753]
[1745276661757,0.86105239,87045.0,87044.0,0.00045753]
[1745276662095,0.8717712,87045.0,87044.0,0.00045753]
[1745276662329,0.8657712,87045.0,87044.0,0.00045753]
[1745276662548,0.8707712,87045.0,87044.0,0.00045753]
[1745276662753,0.75701915,87045.0,87044.0,0.00045753]
[1745276663137,0.74630034,87045.0,87044.0,0.00045753]
[1745276670892,0.74730034,87045.0,87044.0,0.00045753]
[1745276677939,0.75798815,87045.0,87044.0,0.00045753]
[1745276678591,0.77936611,87045.0,87044.0,0.00045753]
[1745276680230,0.75798815,87045.0,87044.0,0.00045753]
[1745276681114,0.77936611,87045.0,87044.0,0.00045753]
[1745276682254,0.77836611,87045.0,87044.0,0.00045753]
[1745276685711,0.87416611,87045.0,87044.0,0.00045753]
[1745276689868,0.82916611,87045.0,87044.0,0.00045753]
[1745276693640,0.86141631,87045.0,87044.0,0.00045753]
[1745276694545,0.82916611,87045.0,87044.0,0.00045753]
[1745276694771,0.86142882,87045.0,87044.0,0.00045753]
[1745276697157,0.81232882,87045.0,87044.0,0.00045753]
[1745276697335,0.71652882,87045.0,87044.0,0.00045753]
[1745276697529,0.81232882,87045.0,87044.0,0.00045753]
[1745276699167,0.92608087,87045.0,87044.0,0.00045753]
[1745276700140,0.81232882,87045.0,87044.0,0.00045753]
[1745276706492,0.22986392,87008.0,87006.0,0.0464]
[1745276706699,0.22988241,87001.0,86999.0,0.0464]
[1745276706900,0.01149464,86997.0,86991.0,0.0466]
[1745276707111,0.02137796,86996.0,86991.0,0.0466]
[1745276707319,0.22990619,86992.0,86991.0,0.093]
[1745276707526,0.01149504,86994.0,86991.0,0.093]
[1745276707726,0.22990355,86993.0,86991.0,0.093]
[1745276709208,0.22990355,86993.0,86991.0,0.095]
[1745276709646,0.22990355,86993.0,86991.0,0.093]
[1745276709991,0.22990355,86993.0,86991.0,0.095]
[1745276710417,0.01117615,86992.0,86991.0,0.095]
[1745276711933,0.01117615,86992.0,86991.0,0.66390884]
[1745276712091,0.01117615,86992.0,86991.0,0.69305099]
[1745276712321,0.5687665,87003.0,86996.0,0.01149478]
[1745276712489,0.01149438,86999.0,86995.0,0.24139308]
[1745276712690,0.10524231,87002.0,86996.0,0.01149478]
[1745276712966,0.32739398,87003.0,86996.0,0.01149478]
[1745276713166,0.11673907,87001.0,86998.0,0.01149451]
[1745276713400,0.01149412,87001.0,86998.0,0.01149451]
[1745276713582,0.1052476,87000.0,86998.0,0.01149451]
[1745276713795,0.22990091,86994.0,86980.0,4.574e-05]
[1745276714019,0.22990619,86992.0,86980.0,0.20553549]
[1745276714247,0.22990619,86992.0,86985.0,0.01149623]
[1745276714446,0.24108234,86992.0,86983.0,0.01149649]
[1745276714575,0.24108234,86992.0,86985.0,0.01149623]
[1745276715434,0.24108234,86992.0,86986.0,0.0114961]
[1745276716113,0.24108234,86992.0,86991.0,0.095]
[1745276719609,0.11644489,86992.0,86991.0,0.095]
[1745276720305,0.01149412,87001.0,86997.0,0.01149464]
[1745276720685,0.01119729,87000.0,86997.0,0.01149464]
[1745276720939,0.22990619,86992.0,86991.0,0.095]
[1745276721149,0.01149504,86994.0,86991.0,0.095]
[1745276721291,0.33516964,86993.0,86991.0,0.095]
[1745276721713,0.33516964,86993.0,86991.0,0.094]
[1745276722774,0.33516964,86993.0,86991.0,0.095]
[1745276723643,0.10526609,86993.0,86991.0,0.095]
[1745276723844,0.01117615,86992.0,86991.0,0.095]
[1745276724453,0.11628511,86992.0,86991.0,0.095]
[1745276724933,0.11628511,86992.0,86991.0,0.094]